bitfinex-derivatives/quotes_ETHF0:USTF0_20250426
["timestamp","ask_amount","ask_price","bid_price","bid_amount"]
[1745667922164,2.49581993,1787.5,1787.4,7.99638]
[1745667922367,2.49581993,1787.5,1787.4,12.99638]
[1745667922770,1.00719993,1787.5,1787.4,53.79638]
[1745667922964,9.93e-06,1787.5,1787.4,53.79638]
[1745667923566,3.2078,1787.9,1787.8,1.11833]
[1745667923767,3.2078,1787.9,1787.8,5.95133]
[1745667924167,3.2078,1787.9,1787.8,46.75133]
[1745667926466,3.2078,1788.1,1787.8,45.633]
[1745667926772,7.26103994,1788.3,1788.2,1.11808]
[1745667926973,7.26103994,1788.3,1788.2,9.15888]
[1745667927177,7.26103994,1788.3,1788.2,14.15888]
[1745667927474,9.19763994,1788.6,1788.3,1.11802]
[1745667927670,9.19763994,1788.6,1788.5,1.11789]
[1745667927973,6.11655994,1788.6,1788.5,1.11789]
[1745667928173,6.11655994,1788.6,1788.5,9.91679]
[1745667928369,4.73471994,1788.6,1788.5,9.91679]
[1745667928667,0.87687994,1788.6,1788.5,50.71679]
[1745667928872,7.27768993,1788.8,1788.7,1.11777]
[1745667929075,5.64619993,1788.8,1788.7,9.09757]
[1745667929277,1.47561993,1788.8,1788.7,14.09757]
[1745667929471,9.93e-06,1788.8,1788.7,54.89757]
[1745667930067,9.70940692,1789.0,1788.9,1.11764]
[1745667930274,9.70940692,1789.0,1788.9,4.32544]
[1745667931573,6.71790692,1789.0,1788.9,4.32544]
[1745667931770,7.7242,1790.0,1788.9,11.00181]
[1745667931971,1.8542,1789.6,1789.4,1.11731]
[1745667932168,1.8542,1789.6,1789.5,5.88727]
[1745667933276,3.2078,1790.1,1789.8,1.11706]
[1745667933481,1.9525,1789.8,1789.7,1.1171]
[1745667933682,1.9525,1789.8,1789.7,5.8861]
[1745667933873,1.9525,1789.8,1789.7,46.6861]
[1745667934380,3.2078,1790.1,1790.0,1.11696]
[1745667934970,15.92959762,1790.4,1790.2,1.1168]
[1745667935176,15.92959762,1790.4,1790.3,4.769]
[1745667935383,15.92959762,1790.4,1790.3,45.569]
[1745667935586,22.88209762,1790.4,1790.3,45.569]
[1745667936283,24.87619762,1790.4,1790.3,45.569]
[1745667936479,19.87619762,1790.4,1790.3,45.569]
[1745667936684,7.1544,1790.4,1790.3,45.569]
[1745667937489,13.27111,1790.4,1790.3,4.769]
[1745667938294,12.1544,1790.4,1790.3,4.769]
[1745667938686,7.1544,1790.4,1790.3,4.769]
[1745667940692,7.1544,1790.4,1790.3,5.88577]
[1745667941291,7.1544,1790.4,1790.3,4.769]
[1745667941499,13.27111,1790.4,1790.3,4.769]
[1745667942695,18.0244,1790.4,1790.0,4.767]
[1745667942892,3.2078,1790.1,1790.0,4.767]
[1745667943094,3.2078,1790.1,1790.0,5.88396]
[1745667943293,3.2078,1790.1,1790.0,46.68396]
[1745667943703,3.2078,1790.1,1790.0,45.567]
[1745667944309,5.0482,1790.1,1790.0,46.68396]
[1745667945398,1.8404,1790.1,1790.0,46.68396]
[1745667948899,1.8404,1790.1,1790.0,45.567]
[1745667949103,1.8404,1790.1,1790.0,46.68396]
[1745667949607,1.8404,1790.1,1790.0,45.567]
[1745667950401,1.8404,1790.1,1790.0,46.68396]
[1745667950609,1.8404,1790.1,1790.0,45.567]
[1745667950912,1.8404,1790.1,1790.0,46.68396]
[1745667952011,5.2019,1790.4,1790.3,1.11677]
[1745667952710,1.11647,1790.8,1790.4,1.11666]
[1745667952903,1.9134,1790.6,1790.5,4.766]
[1745667953304,3.9326,1790.6,1790.5,4.766]
[1745667954803,3.9326,1790.6,1790.5,5.88264]
[1745667955214,2.0192,1790.6,1790.5,5.88264]
[1745667955504,5.0971,1791.1,1790.8,1.11642]
[1745667955711,8.14878,1791.1,1790.9,4.765]
[1745667956411,7.0325,1791.1,1790.9,4.765]
[1745667956615,1.11633,1791.0,1790.9,4.765]
[1745667957005,7.0325,1791.1,1790.9,4.765]
[1745667957204,1.11633,1791.0,1790.9,4.765]
[1745667957604,6.11633,1791.0,1790.9,4.765]
[1745667958506,8.08303,1791.0,1790.9,4.765]
[1745667959004,13.95303,1791.0,1790.9,4.765]
[1745667959205,19.26103,1791.0,1790.9,1e-08]
[1745667959613,1.11656,1790.7,1790.6,4.591]
[1745667960210,3.16036,1790.7,1790.6,4.591]
[1745667960716,8.16036,1790.7,1790.6,4.591]
[1745667961108,13.46836,1790.7,1790.6,4.591]
[1745667961309,8.46836,1790.7,1790.6,4.591]
[1745667961503,7.3518,1790.7,1790.6,5.70758]
[1745667962214,2.0438,1790.7,1790.6,4.591]
[1745667962513,2.0438,1790.7,1790.6,5.70758]
[1745667962713,2.0438,1790.7,1790.6,4.591]
[1745667962918,2.0438,1790.7,1790.6,5.70758]
[1745667963912,2.0438,1790.7,1790.6,4.591]
[1745667964119,2.0438,1790.7,1790.2,62.689]
[1745667964311,1.1167,1790.5,1790.3,4.591]
[1745667964510,1.957,1790.4,1790.3,4.591]
[1745667965009,3.07371,1790.4,1790.3,4.591]
[1745667965812,1.957,1790.4,1790.3,4.591]
[1745667966010,1.957,1790.4,1790.3,1.11677]
[1745667966203,1.957,1790.4,1790.3,5.70777]
[1745667966615,1.957,1790.4,1790.3,7.73187]
[1745667968012,1.957,1790.4,1790.3,3.14087]
[1745667968313,7.0301,1790.6,1790.3,7.73187]
[1745667968514,1.9329,1790.5,1790.3,7.73187]
[1745667968816,3.2078,1790.6,1790.5,1.11664]
[1745667969017,3.2078,1790.6,1790.4,3.14076]
[1745667969218,5.1407,1790.6,1790.4,2.0241]
[1745667970116,5.1407,1790.6,1790.4,3.14077]
[1745667970315,5.1407,1790.6,1790.4,2.0241]
[1745667970716,5.1407,1790.6,1790.4,3.14078]
[1745667971314,5.1407,1790.6,1790.5,1.11664]
[1745667971617,5.1407,1790.6,1790.4,3.14077]
[1745667971814,5.1407,1790.6,1790.5,1.11664]
[1745667972422,5.1407,1790.6,1790.4,3.14076]
[1745667973618,5.1407,1790.6,1790.4,2.0241]
[1745667973819,6.25728,1790.6,1790.3,4.591]
[1745667974020,6.25728,1790.6,1790.3,5.70774]
[1745667974612,7.22701068,1790.5,1790.3,5.70774]
[1745667974812,1.9462,1790.4,1790.3,5.70774]
[1745667978124,3.2078,1790.6,1790.3,4.591]
[1745667978325,1.9783,1790.5,1790.4,2.98736]
[1745667978526,1.9783,1790.5,1790.4,7.57836]
[1745667979619,1.1165,1790.8,1790.5,1.11663]
[1745667979820,1.993,1790.7,1790.5,2.98823]
[1745667980815,1.993,1790.7,1790.6,1.11658]
[1745667981722,1.993,1790.7,1790.5,1.8716]
[1745667982118,1.993,1790.7,1790.5,2.98821]
[1745667982424,12.82590891,1790.7,1790.5,2.9882]
[1745667983025,12.82590891,1790.7,1790.6,1.11658]
[1745667984521,12.82590891,1790.7,1790.5,1.8716]
[1745667985026,13.94244891,1790.7,1790.4,5.7077]
[1745667985229,14.92520891,1790.7,1790.4,7.6507]
[1745667985529,16.04172891,1790.7,1790.4,7.6507]
[1745667985827,5.20882,1790.7,1790.4,7.6507]
[1745667986124,3.2078,1790.6,1790.4,4.591]
[1745667986421,3.2078,1790.6,1790.1,4.591]
[1745667986422,1.1168,1790.3,1790.1,4.591]
[1745667986624,1.9351,1790.2,1790.1,1.11689]
[1745667986822,1.9351,1790.2,1790.1,1.943]
[1745667987023,1.9351,1790.2,1790.1,4.591]
[1745667987426,1.9351,1790.2,1790.1,5.70789]
[1745667987626,5.1429,1790.2,1790.1,4.591]
[1745667987929,6.25973,1790.2,1790.1,4.591]
[1745667988120,5.1429,1790.2,1790.1,4.591]
[1745667988317,6.25973,1790.2,1789.9,41.91698]
[1745667988513,6.25973,1790.2,1790.0,4.591]
[1745667988718,5.1429,1790.2,1790.0,5.70795]
[1745667988915,6.25974,1790.2,1790.0,5.70795]
[1745667989122,5.1429,1790.2,1790.0,4.591]
[1745667989328,1.9351,1790.2,1790.1,1.11689]
[1745667990124,5.308,1790.3,1790.2,1.11683]
[1745667990323,7.9288,1790.4,1790.3,1.11677]
[1745667990528,5.87,1790.4,1790.3,1.11677]
[1745667990730,1.975,1790.6,1790.5,1.11664]
[1745667990931,1.975,1790.6,1790.5,5.49864]
[1745667991429,14.04070891,1790.8,1790.6,1.11652]
[1745667991630,16.01570891,1790.8,1790.5,5.49861]
[1745667991829,17.94870891,1790.8,1790.5,4.382]
[1745667992029,19.06518891,1790.8,1790.5,4.382]
[1745667992633,1.11653,1790.7,1790.5,4.382]
[1745667992835,1.975,1790.6,1790.5,4.382]
[1745667993533,1.975,1790.6,1790.5,6.3736]
[1745667993731,1.975,1790.6,1790.5,7.49024]
[1745667993931,1.975,1790.6,1790.5,6.3736]
[1745667994333,1.975,1790.6,1790.5,4.382]
[1745667994532,3.09158,1790.6,1790.5,4.382]
[1745667994836,6.29938,1790.6,1790.5,4.382]
[1745667995641,1.975,1790.6,1790.5,4.382]
[1745667995933,1.975,1790.6,1790.5,5.49864]
[1745667996522,1.975,1790.6,1790.5,4.382]
[1745667996733,14.47224286,1790.7,1790.5,5.49864]
[1745667996939,16.51024286,1790.7,1790.6,1.9281]
[1745667997528,16.51024286,1790.7,1790.6,3.04468]
[1745667997727,14.47224286,1790.7,1790.6,3.04468]
[1745667999431,14.47224286,1790.7,1790.6,1.9281]
[1745667999635,16.51024286,1790.7,1790.5,5.49862]
[1745667999840,16.51024286,1790.7,1790.5,7.41772]
[1745668000237,16.51024286,1790.7,1790.6,1.11658]
[1745668000736,27.14335736,1790.8,1790.7,1.11652]
[1745668000737,10.83290891,1790.8,1790.7,1.11652]
[1745668001840,17.07116891,1790.8,1790.7,4.382]
[1745668002342,15.95470891,1790.8,1790.5,4.382]
[1745668002533,1.11658,1790.6,1790.5,4.382]
[1745668002838,2.0917,1790.7,1790.5,5.49863]
[1745668003135,2.0022,1790.6,1790.5,5.49863]
[1745668003936,2.0022,1790.6,1790.5,4.382]
[1745668004531,3.11878,1790.6,1790.5,4.382]
[1745668004734,2.0022,1790.6,1790.5,4.382]
[1745668005040,3.11878,1790.6,1790.5,4.382]
[1745668005441,2.0022,1790.6,1790.5,4.382]
[1745668005643,1.11677,1790.3,1790.2,4.382]
[1745668005944,3.2078,1790.4,1790.1,5.49885]
[1745668006144,2.0116,1790.2,1790.1,5.49889]
[1745668006442,2.0116,1790.2,1790.1,4.382]
[1745668006642,4.1169,1790.2,1790.1,4.382]
[1745668006944,8.44153,1790.2,1790.1,4.382]
[1745668007443,7.3247,1790.2,1790.1,5.49889]
[1745668007935,7.3247,1790.2,1790.1,4.382]
[1745668008244,8.44153,1790.2,1790.1,4.382]
[1745668008742,4.1169,1790.2,1790.1,4.382]
[1745668009339,4.1169,1790.2,1790.1,1.11689]
[1745668009643,2.0116,1790.2,1790.1,1.11689]
[1745668010142,2.0116,1790.2,1790.1,3.11879]
[1745668011148,2.0116,1790.2,1790.1,2.0019]
[1745668012037,2.0116,1790.2,1790.1,6.3839]
[1745668012841,3.12843,1790.2,1790.1,6.3839]
[1745668013040,6.33623,1790.2,1790.1,4.382]
[1745668013241,1.11713,1789.8,1789.7,4.382]
[1745668013441,4.32493,1789.8,1789.7,4.382]
[1745668013850,4.32493,1789.8,1789.7,45.182]
[1745668014250,6.42313,1789.8,1789.7,45.182]
[1745668014449,5.306,1789.8,1789.7,46.29914]
[1745668014647,5.306,1789.8,1789.7,45.182]
[1745668015251,5.87,1790.0,1789.9,1.11702]
[1745668015453,5.87,1790.0,1789.8,3.36886]
[1745668016141,8.0991,1790.0,1789.8,3.36886]
[1745668016343,12.42386,1790.0,1789.7,46.29911]
[1745668016542,14.67386,1790.0,1789.7,46.29911]
[1745668016949,13.5569,1790.0,1789.7,45.182]
[1745668017148,4.32488,1789.8,1789.7,45.182]
[1745668017450,4.32488,1789.8,1789.4,4.4706]
[1745668017451,1.11727,1789.5,1789.4,4.383]
[1745668018049,5.65577,1789.5,1789.4,4.383]
[1745668018751,9.5385,1789.5,1789.0,4.383]
[1745668018942,5.3744,1789.4,1789.1,1.11748]
[1745668019147,2.2885,1789.3,1789.1,41.9175]
[1745668019853,2.2885,1789.3,1789.0,4.383]
[1745668019854,1.11752,1789.1,1789.0,4.383]
[1745668020048,1.11752,1789.1,1788.9,3.2078]
[1745668020352,1.11752,1789.1,1788.8,46.19864]
[1745668020353,4.564,1789.0,1788.8,46.19864]
[1745668020551,4.564,1789.0,1788.9,1.11764]
[1745668020747,4.564,1789.0,1788.8,4.281]
[1745668020940,1.11764,1788.9,1788.6,1.11779]
[1745668021140,2.1518,1788.8,1788.6,1.11779]
[1745668021951,2.1518,1788.8,1788.5,46.19888]
[1745668022152,5.3596,1788.8,1788.6,1.11781]
[1745668022348,5.3596,1788.8,1788.5,48.46535]
[1745668023144,5.3596,1788.8,1788.5,48.46537]
[1745668023346,2.1518,1788.8,1788.5,48.46537]
[1745668024151,2.1518,1788.8,1788.5,47.3475]
[1745668024356,2.1518,1788.8,1788.6,1.11778]
[1745668024653,2.1518,1788.8,1788.7,2.2492]
[1745668025357,3.26951,1788.8,1788.7,2.2492]
[1745668025544,3.26951,1788.8,1788.5,46.19886]
[1745668025751,2.1518,1788.8,1788.5,50.538]
[1745668025950,3.26952,1788.8,1788.5,47.3302]
[1745668026149,3.26956,1788.8,1788.5,45.081]
[1745668026349,1.11778,1788.7,1788.5,45.081]
[1745668026545,2.2381,1788.6,1788.5,45.081]
[1745668026749,3.35593,1788.6,1788.5,45.081]
[1745668026946,2.2381,1788.6,1788.5,45.081]
[1745668027549,3.35593,1788.6,1788.5,45.081]
[1745668027747,3.35593,1788.6,1788.1,62.693]
[1745668027748,1.11808,1788.2,1788.1,66.976]
[1745668028057,1.11806,1788.3,1788.1,4.283]
[1745668028255,3.33718,1788.2,1788.1,45.083]
[1745668028456,6.54498,1788.2,1788.1,45.083]
[1745668028954,6.54498,1788.2,1787.7,6.40465]
[1745668028955,5.4269,1788.2,1787.8,4.283]
[1745668029257,1.11824,1788.0,1787.8,4.283]
[1745668029450,3.33737,1787.9,1787.8,45.083]
[1745668030758,1.1185,1787.6,1787.4,4.283]
[1745668030957,1.1186,1787.4,1787.2,4.283]
[1745668031157,2.1855,1787.3,1787.2,45.083]
[1745668031755,4.32629,1787.6,1787.2,45.083]
[1745668032059,3.30404,1787.5,1787.3,2.2397]
[1745668032259,2.1855,1787.5,1787.3,2.2397]
[1745668032565,3.30402,1787.5,1787.3,2.2397]
[1745668033055,1.11858,1787.4,1787.3,2.2397]
[1745668033262,1.11864,1787.3,1787.2,4.283]
[1745668033457,3.2078,1787.3,1786.7,67.06177]
[1745668033653,1.11885,1787.0,1786.8,4.285]
[1745668033964,2.1074,1786.9,1786.8,47.2407]
[1745668034165,2.1074,1786.9,1786.8,45.085]
[1745668035554,9.0778,1787.3,1786.8,50.085]
[1745668035754,3.2078,1787.3,1787.0,1.11883]
[1745668036157,3.2078,1787.3,1787.0,3.3775]
[1745668037661,4.32645,1787.3,1787.0,3.3775]
[1745668037962,3.2078,1787.3,1787.0,3.3775]
[1745668038565,6.43378,1787.4,1787.0,3.3775]
[1745668038965,5.3152,1787.4,1787.1,1.11876]
[1745668039257,5.3152,1787.4,1787.2,4.286]
[1745668039462,2.1074,1787.4,1787.2,4.286]
[1745668039862,13.4213,1787.7,1787.2,4.286]
[1745668040059,13.4213,1787.7,1787.5,1.1185]
[1745668040060,11.2374,1787.7,1787.5,1.1185]
[1745668040966,5.3674,1787.7,1787.5,1.11848]
[1745668041169,5.3674,1787.7,1787.3,5.4545]
[1745668041376,3.2078,1787.5,1787.2,4.286]
[1745668041561,1.11864,1787.3,1787.2,4.286]
[1745668041760,1.11871,1787.2,1787.1,45.086]
[1745668041960,1.11869,1787.3,1787.1,4.286]
[1745668042155,3.27831,1787.2,1787.1,4.286]
[1745668042361,6.9886,1787.4,1787.1,5.40476]
[1745668042662,6.9886,1787.4,1787.2,1.1187]
[1745668042663,7.9729,1787.4,1787.2,1.1187]
[1745668043362,7.9729,1787.4,1787.2,1.11865]
[1745668043670,7.9729,1787.4,1787.3,1.11864]
[1745668043871,2.1029,1787.4,1787.3,1.11864]
[1745668044365,3.2078,1787.7,1787.1,9.64]
[1745668044563,3.2078,1787.7,1787.5,1.11847]
[1745668044763,3.2078,1787.7,1787.5,5.40547]
[1745668044963,3.2078,1787.7,1787.5,4.287]
[1745668045163,6.42911,1787.7,1787.5,4.287]
[1745668045569,5.3107,1787.7,1787.5,4.287]
[1745668045768,5.3107,1787.7,1787.6,1.11846]
[1745668046368,5.3107,1787.7,1787.5,4.287]
[1745668046569,6.42909,1787.7,1787.5,4.287]
[1745668046869,5.3107,1787.7,1787.6,1.11846]
[1745668047061,5.3107,1787.7,1787.5,4.287]
[1745668047459,1.11846,1787.6,1787.5,4.287]
[1745668047678,3.18816,1787.6,1787.5,4.287]
[1745668048169,7.60636,1787.6,1787.5,4.287]
[1745668048570,1.11864,1787.3,1787.2,4.287]
[1745668048769,4.32644,1787.3,1787.2,4.287]
[1745668049073,8.2078,1787.3,1787.0,3.2078]
[1745668049271,1.11877,1787.1,1787.0,3.2078]
[1745668049672,3.29127,1787.1,1787.0,3.2078]
[1745668049874,5.53967,1787.1,1787.0,3.2078]
[1745668050073,1.11883,1787.0,1786.9,4.287]
[1745668050374,1.11889,1786.9,1786.8,3.2078]
[1745668050871,6.98889,1786.9,1786.8,3.2078]
[1745668051173,1.11929,1786.3,1786.0,3.2078]
[1745668051374,3.2078,1786.4,1786.0,41.91946]
[1745668051575,2.2631,1786.3,1786.1,1.11939]
[1745668051874,2.2631,1786.3,1786.0,42.8976]
[1745668052076,2.2631,1786.3,1786.0,44.01702]
[1745668052276,3.2078,1786.4,1786.0,42.8976]
[1745668052577,2.2631,1786.3,1786.1,1.11935]
[1745668052774,2.2631,1786.3,1786.2,2.0976]
[1745668053173,2.2631,1786.5,1786.2,5.3054]
[1745668053363,2.2631,1786.5,1786.3,4.226]
[1745668053364,1.11921,1786.4,1786.3,4.226]
[1745668053567,2.2631,1786.5,1786.3,4.226]
[1745668053767,2.2631,1786.4,1786.3,4.226]
[1745668054968,11.32999,1786.6,1786.3,4.226]
[1745668055370,10.2109,1786.6,1786.3,7.41356]
[1745668055673,5.87,1787.0,1786.4,5.2761]
[1745668055874,2.0781,1787.0,1786.6,3.2078]
[1745668056172,1.11898,1786.8,1786.7,4.227]
[1745668056569,2.0781,1787.0,1786.7,4.227]
[1745668056777,2.0781,1787.0,1786.7,5.34598]
[1745668056979,3.19696,1787.0,1786.8,2.0683]
[1745668057171,2.0781,1787.0,1786.8,2.0683]
[1745668057480,4.32659,1787.1,1786.8,2.0683]
[1745668057776,6.50859,1787.1,1786.8,2.0683]
[1745668058078,5.3898,1787.1,1786.8,3.18725]
[1745668058276,5.3898,1787.1,1786.9,1.11886]
[1745668058587,4.3265,1787.3,1786.9,2.0976]
[1745668058783,6.5085,1787.3,1786.9,2.0976]
[1745668058972,6.5085,1787.3,1786.9,3.21649]
[1745668059785,5.3898,1787.3,1786.9,2.0976]
[1745668060093,1.11871,1787.2,1786.9,2.0976]
[1745668060283,2.182,1787.1,1786.9,3.21649]
[1745668061076,3.30079,1787.1,1786.8,1.1189]
[1745668061279,4.3885,1787.1,1786.8,1.1189]
[1745668061476,5.50729,1787.1,1786.8,3.3651]
[1745668061676,7.5963,1787.1,1786.7,4.227]
[1745668061987,3.2078,1786.8,1786.4,4.226]
[1745668062183,1.11914,1786.6,1786.4,4.226]
[1745668062384,2.2109,1786.5,1786.4,5.34521]
[1745668062885,2.2109,1786.5,1786.4,7.59141]
[1745668063481,4.3087,1786.7,1786.5,1.11913]
[1745668063681,6.5711,1786.7,1786.5,2.1719]
[1745668063882,6.5711,1786.7,1786.5,3.29102]
[1745668064493,7.69012,1786.7,1786.5,2.1719]
[1745668065779,1.11914,1786.5,1786.4,4.226]
[1745668066491,1.1191,1786.6,1786.4,4.226]
[1745668066692,3.16764,1786.5,1786.4,4.226]
[1745668067186,2.0485,1786.5,1786.4,4.226]
[1745668067590,2.0485,1786.5,1786.4,5.34521]
[1745668068188,2.0485,1786.5,1786.4,7.61591]
[1745668068887,5.87,1786.8,1786.6,1.11908]
[1745668069096,5.87,1786.8,1786.4,6.4967]
[1745668069097,9.0778,1786.8,1786.4,4.226]
[1745668069288,1.11914,1786.5,1786.4,4.226]
[1745668069996,4.32694,1786.5,1786.4,4.226]
[1745668070189,8.2078,1786.5,1786.1,67.027]
[1745668070390,1.11933,1786.2,1786.1,4.227]
[1745668070797,2.2567,1786.4,1786.1,4.227]
[1745668070798,3.33031,1786.3,1786.1,4.227]
[1745668070982,2.2567,1786.2,1786.1,4.227]
[1745668071389,2.2567,1786.2,1786.1,5.34639]
[1745668071586,1.11939,1786.1,1786.0,40.8]
[1745668071788,3.26919,1786.1,1786.0,40.8]
[1745668071990,2.1498,1786.1,1786.0,40.8]
[1745668072397,5.52589,1786.1,1786.0,40.8]
[1745668073904,5.52589,1786.1,1785.9,6.4499]
[1745668074094,5.52589,1786.1,1785.9,7.56942]
[1745668074294,5.52589,1786.1,1785.9,48.36942]
[1745668074495,4.4065,1786.1,1785.9,48.36942]
[1745668074694,2.2567,1786.1,1785.9,48.36942]
[1745668074896,2.2567,1786.1,1786.0,1.11946]
[1745668075096,2.2567,1786.1,1786.0,2.2249]
[1745668075395,3.37609,1786.1,1786.0,2.2249]
[1745668075902,2.2567,1786.1,1786.0,2.2249]
[1745668076402,3.37609,1786.1,1786.0,2.2249]
[1745668077098,2.2567,1786.1,1786.0,2.2249]
[1745668077298,2.2567,1786.1,1786.0,3.34436]
[1745668077599,3.60714378,1786.3,1786.0,5.4327]
[1745668077800,3.60714378,1786.3,1786.2,1.11933]
[1745668078304,3.60714378,1786.3,1786.2,2.2434]
[1745668079208,3.60714378,1786.3,1786.2,6.57053]
[1745668079607,11.35101335,1786.4,1786.3,1.11927]
[1745668079608,9.47714378,1786.4,1786.3,1.11927]
[1745668079913,3.60714378,1786.4,1786.3,7.52407]
[1745668080204,3.60714378,1786.4,1786.3,12.52407]
[1745668080502,7.33736699,1786.7,1786.6,1.11908]
[1745668080503,6.03952412,1786.7,1786.6,1.11908]
[1745668080706,4.83395412,1786.7,1786.6,4.32688]
[1745668080908,9.19163796,1786.8,1786.7,1.11902]
[1745668081102,9.19163796,1786.8,1786.7,9.86702]
[1745668081405,9.19163796,1786.8,1786.7,14.86702]
[1745668082005,7.94897796,1786.8,1786.7,55.66702]
[1745668083108,2.29151796,1786.8,1786.7,50.66702]
[1745668083411,1.11873,1787.2,1786.8,1.11894]
[1745668083617,2.2955,1787.1,1786.8,4.32674]
[1745668083803,2.2955,1787.1,1786.7,49.548]
[1745668084003,2.2955,1787.1,1786.9,1.11884]
[1745668084308,2.2955,1787.1,1787.0,2.2654]
[1745668084606,2.2955,1787.1,1787.0,3.38423]
[1745668084909,2.2955,1787.1,1787.0,2.2654]
[1745668085101,2.2955,1787.1,1787.0,3.38423]
[1745668085608,5.87,1787.4,1787.1,1.11875]
[1745668085811,2.3691,1787.3,1787.1,5.29475]
[1745668086002,2.3691,1787.3,1787.2,2.3026]
[1745668086204,2.3691,1787.3,1787.2,3.42131]
[1745668086707,2.3691,1787.3,1787.2,2.3026]
[1745668086914,6.69559,1787.3,1787.1,4.176]
[1745668087212,1.11871,1787.2,1787.1,4.176]
[1745668087406,5.89081,1787.2,1787.1,4.176]
[1745668087606,4.7721,1787.2,1787.1,4.176]
[1745668087810,4.7721,1787.2,1786.7,44.0078]
[1745668088014,4.7721,1787.2,1786.7,40.8]
[1745668088015,1.11888,1787.0,1786.7,40.8]
[1745668088313,2.3772,1786.9,1786.7,40.8]
[1745668089009,2.3772,1786.9,1786.7,41.91899]
[1745668089509,2.3772,1786.9,1786.7,44.27459]
[1745668090209,2.3772,1786.9,1786.8,1.11896]
[1745668090613,2.3772,1786.9,1786.7,43.1556]
[1745668090817,2.3772,1786.9,1786.6,4.176]
[1745668091113,1.11901,1786.8,1786.6,4.176]
[1745668091315,3.44072,1786.7,1786.6,44.976]
[1745668091516,2.3217,1786.7,1786.6,44.976]
[1745668092507,2.3217,1786.7,1786.6,46.09508]
[1745668092907,2.3217,1786.7,1786.6,44.976]
[1745668093112,2.3217,1786.7,1786.6,46.09508]
[1745668093306,2.1797,1786.8,1786.6,48.45278]
[1745668093509,2.1797,1786.8,1786.7,3.47672]
[1745668093703,3.29866,1786.8,1786.7,2.3577]
[1745668093908,3.29866,1786.8,1786.6,44.976]
[1745668094213,2.2474,1786.7,1786.6,44.976]
[1745668095014,3.36642,1786.7,1786.6,44.976]
[1745668095217,2.2474,1786.7,1786.6,44.976]
[1745668095418,2.2474,1786.7,1786.6,46.09508]
[1745668095726,2.2018,1787.0,1786.8,1.11892]
[1745668096022,5.56804,1787.0,1786.7,1.11898]
[1745668096212,1.11898,1786.8,1786.6,47.2139]
[1745668096411,2.2474,1786.7,1786.6,47.2139]
[1745668096818,2.2474,1786.7,1786.6,48.33298]
[1745668097507,2.3963,1786.9,1786.8,1.11896]
[1745668097710,2.3641,1786.9,1786.8,1.11896]
[1745668098220,2.3641,1786.9,1786.8,3.30316]
[1745668100918,2.2018,1787.0,1786.9,1.11889]
[1745668101123,2.2018,1787.0,1786.9,3.47289]
[1745668101516,3.2078,1787.6,1787.2,1.11871]
[1745668101824,7.8216,1787.6,1787.3,4.176]
[1745668102021,1.11852,1787.5,1787.3,4.176]
[1745668102322,2.3249,1787.4,1787.3,4.176]
[1745668102521,4.5767,1787.4,1787.3,4.176]
[1745668103217,2.3249,1787.4,1787.3,5.29464]
[1745668103424,2.2889,1787.6,1787.4,1.11853]
[1745668103623,2.2889,1787.6,1787.4,3.54423]
[1745668103819,2.1938,1787.5,1787.4,2.4257]
[1745668104224,2.1938,1787.5,1787.3,4.176]
[1745668104423,2.1938,1787.5,1787.3,5.29464]
[1745668104928,2.1938,1787.5,1787.4,1.11858]
[1745668105516,2.1938,1787.5,1787.3,5.2946]
[1745668106025,2.1938,1787.5,1787.4,1.11858]
[1745668106425,2.1938,1787.5,1787.4,3.42288]
[1745668107820,2.2889,1787.6,1787.5,1.11852]
[1745668108023,4.7091,1787.6,1787.5,3.42282]
[1745668108425,11.5257896,1787.8,1787.7,1.11839]
[1745668108721,9.1055896,1787.8,1787.7,8.50119]
[1745668108924,11.5257896,1787.8,1787.7,49.30119]
[1745668109125,11.5257896,1787.8,1787.7,46.09339]
[1745668109724,9.1055896,1787.8,1787.7,51.09339]
[1745668109913,7.8820896,1787.8,1787.7,51.09339]
[1745668110118,5.0210096,1787.8,1787.7,53.39579]
[1745668110324,1.5563196,1787.8,1787.7,53.39579]
[1745668110526,9.6e-06,1787.8,1787.7,53.39579]
[1745668111628,9.6e-06,1787.8,1787.7,48.39579]
[1745668112625,6.7961,1788.2,1787.9,1.11824]
[1745668112827,6.7961,1788.2,1788.0,4.129]
[1745668113325,6.7961,1788.2,1788.1,1.11814]
[1745668113829,4.4562,1788.2,1788.1,3.39274]
[1745668114018,4.4562,1788.2,1788.1,2.2746]
[1745668114632,4.4562,1788.2,1788.0,4.129]
[1745668114826,4.4562,1788.2,1788.0,5.2472]
[1745668115331,4.4562,1788.2,1788.1,1.11814]
[1745668115625,3.2078,1788.5,1788.4,1.11796]
[1745668115829,5.6219,1788.5,1788.4,5.24596]
[1745668116019,2.4141,1788.5,1788.4,5.24596]
[1745668116829,7.25453233,1788.6,1788.4,5.2459]
[1745668117027,9.66863233,1788.6,1788.5,1.11789]
[1745668117231,9.66863233,1788.6,1788.5,3.48569]
[1745668117431,9.66863233,1788.6,1788.4,4.128]